bitfinex-derivatives/quotes_BTCF0:USTF0_20250308
["timestamp","ask_amount","ask_price","bid_price","bid_amount"]
[1741418761378,0.5691425,86331.0,86330.0,0.00900596]
[1741418766178,0.5691425,86331.0,86330.0,0.12484976]
[1741418766378,0.5691425,86331.0,86330.0,0.00900596]
[1741418767575,0.4085,86331.0,86330.0,0.12484976]
[1741418767769,0.43536,86331.0,86330.0,0.12484976]
[1741418767972,0.47976,86331.0,86330.0,0.12484976]
[1741418768486,0.5956025,86331.0,86330.0,0.12484976]
[1741418768674,0.6388025,86331.0,86330.0,0.12484976]
[1741418769680,0.6388025,86331.0,86330.0,0.00900596]
[1741418770075,0.6388025,86331.0,86330.0,0.12484976]
[1741418770270,0.6832025,86331.0,86330.0,0.00900596]
[1741418770482,0.6388025,86331.0,86330.0,0.12484976]
[1741418771284,0.2780025,86331.0,86330.0,0.12484976]
[1741418771488,0.07456,86331.0,86330.0,0.12484976]
[1741418771678,0.12528185,86331.0,86330.0,0.12484976]
[1741418771871,0.0462,86331.0,86330.0,0.12484976]
[1741418772073,4e-05,86332.0,86331.0,0.1158425]
[1741418772284,4e-05,86332.0,86331.0,0.2094425]
[1741418772987,0.3608,86333.0,86332.0,0.1158411]
[1741418773182,0.36084,86333.0,86332.0,0.1158411]
[1741418773404,0.36084,86333.0,86332.0,0.2094411]
[1741418773609,0.3608,86333.0,86332.0,0.2094411]
[1741418774000,4e-05,86334.0,86333.0,0.1158398]
[1741418774300,4e-05,86334.0,86333.0,0.1619398]
[1741418774500,4e-05,86334.0,86333.0,0.2508398]
[1741418775095,4e-05,86334.0,86333.0,0.32767605]
[1741418775599,0.1158346,86337.0,86336.0,0.1158358]
[1741418777307,0.1616346,86337.0,86336.0,0.1158358]
[1741418777509,0.0458,86337.0,86336.0,0.1158358]
[1741418781311,0.00072,86346.0,86345.0,0.1158237]
[1741418781506,0.0881,86349.0,86346.0,0.1158223]
[1741418781811,0.02320633,86349.0,86348.0,0.1158197]
[1741418782303,0.13902463,86349.0,86348.0,0.1158197]
[1741418785113,0.18472463,86349.0,86348.0,0.1158197]
[1741418786812,0.115821,86347.0,86346.0,0.2061217]
[1741418787511,0.205721,86347.0,86346.0,0.2061217]
[1741418789115,0.158621,86347.0,86346.0,0.2061217]
[1741418794318,0.158621,86347.0,86346.0,0.0903]
[1741418794823,0.158621,86347.0,86346.0,0.2061223]
[1741418795315,0.158621,86347.0,86346.0,0.1617223]
[1741418799616,0.204621,86347.0,86346.0,0.1158223]
[1741418801207,0.204621,86347.0,86346.0,0.2027223]
[1741418811713,0.0579079,86351.0,86346.0,0.2027223]
[1741418811924,0.04728273,86350.0,86349.0,0.1158183]
[1741418812625,0.16309973,86350.0,86349.0,0.1158183]
[1741418813323,8.273e-05,86350.0,86349.0,0.1158183]
[1741418813522,0.3608,86372.0,86356.0,0.1158089]
[1741418813728,0.0578904,86377.0,86356.0,0.4766089]
[1741418813929,0.1157909,86370.0,86364.0,0.1157982]
[1741418814116,0.0907,86371.0,86364.0,0.1157982]
[1741418814318,0.115795,86367.0,86364.0,0.1157982]
[1741418814822,0.115835,86367.0,86364.0,0.19263445]
[1741418815033,0.15905455,86365.0,86364.0,0.28253445]
[1741418815424,0.04325765,86365.0,86364.0,0.28253445]
[1741418816827,0.04325765,86365.0,86349.0,8.273e-05]
[1741418817027,0.45199819,86360.0,86338.0,0.404]
[1741418817226,0.0466,86359.0,86338.0,0.404]
[1741418817421,0.1158231,86348.0,86347.0,0.115817]
[1741418817828,0.2066231,86348.0,86347.0,0.115817]
[1741418818029,0.2066231,86348.0,86342.0,0.0579133]
[1741418818030,0.0908,86348.0,86342.0,0.0579133]
[1741418818226,0.2182315,86347.0,86346.0,0.0433]
[1741418818424,0.1024105,86347.0,86346.0,0.0433]
[1741418818627,0.1490105,86347.0,86346.0,0.0433]
[1741418818829,0.1490105,86347.0,86346.0,0.1591223]
[1741418819918,0.1490105,86347.0,86346.0,0.0433]
[1741418820531,0.1490105,86347.0,86346.0,0.1591223]
[1741418820831,0.1490105,86347.0,86346.0,0.0433]
[1741418825037,0.1490105,86347.0,86346.0,0.1591223]
[1741418826134,0.1490105,86347.0,86346.0,0.0433]
[1741418826326,0.1490105,86347.0,86340.0,0.0579146]
[1741418826637,0.1158277,86342.0,86341.0,0.161128]
[1741418827028,0.1158277,86342.0,86341.0,0.208928]
[1741418827431,0.2080277,86342.0,86341.0,0.208928]
[1741418827740,0.0467,86342.0,86341.0,0.208928]
[1741418828638,0.11582,86348.0,86347.0,0.1158183]
[1741418829441,0.16122,86348.0,86347.0,0.1158183]
[1741418829647,0.115821,86347.0,86346.0,0.0945]
[1741418830040,0.115821,86347.0,86346.0,0.2103223]
[1741418831736,0.160021,86347.0,86346.0,0.2103223]
[1741418835145,0.160021,86347.0,86346.0,0.0945]
[1741418835340,0.160021,86347.0,86346.0,0.2103223]
[1741418835734,0.160021,86347.0,86346.0,0.0945]
[1741418835937,0.1158304,86340.0,86339.0,0.00017366]
[1741418836942,0.1591304,86340.0,86339.0,0.00017366]
[1741418837149,0.2053304,86340.0,86339.0,0.00017366]
[1741418837946,0.2053304,86340.0,86339.0,0.08867366]
[1741418838847,0.1158425,86331.0,86330.0,0.0006]
[1741418839145,0.1158492,86326.0,86325.0,0.00847493]
[1741418839335,0.0579225,86330.0,86321.0,0.4766551]
[1741418839336,0.1158545,86322.0,86321.0,0.4766551]
[1741418839541,0.0507348,86322.0,86321.0,0.4766551]
[1741418840552,0.09172902,86322.0,86321.0,0.48520383]
[1741418842057,0.09172902,86322.0,86321.0,0.57730383]
[1741418842554,0.09172902,86322.0,86321.0,0.05334873]
[1741418851677,0.09172902,86322.0,86321.0,0.16920463]
[1741418851881,0.04099422,86322.0,86321.0,0.16920463]
[1741418852068,4e-05,86324.0,86321.0,0.05334873]
[1741418852271,0.08994,86324.0,86323.0,0.1158532]
[1741418852470,0.0899,86324.0,86323.0,0.2066532]
[1741418853673,0.2057519,86324.0,86323.0,0.2066532]
[1741418854170,0.24138683,86324.0,86323.0,0.2066532]
[1741418854372,0.24138683,86324.0,86323.0,0.0908]
[1741418854776,0.24138683,86324.0,86323.0,0.2066532]
[1741418858674,0.1158545,86322.0,86321.0,0.00854873]
[1741418858881,0.1158559,86321.0,86320.0,0.00173756]
[1741418859079,0.1609559,86321.0,86320.0,0.00173756]
[1741418859480,0.1609559,86321.0,86320.0,0.11759476]
[1741418859672,0.1609559,86321.0,86320.0,0.00173756]
[1741418859873,0.2514559,86321.0,86320.0,0.00173756]
[1741418864972,0.1356,86321.0,86320.0,0.11759476]
[1741418865178,0.2514559,86321.0,86320.0,0.11759476]
[1741418865581,0.2514559,86321.0,86320.0,0.20839476]
[1741418869485,0.2514559,86321.0,86320.0,0.00173756]
[1741418872488,0.1356,86321.0,86313.0,0.00011639]
[1741418872691,0.11588,86305.0,86304.0,0.1158775]
[1741418872896,0.11588,86305.0,86300.0,0.4614]
[1741418872897,0.0579388,86305.0,86303.0,0.0442]
[1741418873089,0.2518787,86304.0,86303.0,0.160079]
[1741418873687,0.2518787,86304.0,86303.0,0.204179]
[1741418874981,0.2518787,86304.0,86303.0,0.0883]
[1741418875186,0.2518787,86304.0,86303.0,0.20418]
[1741418875399,0.2518787,86304.0,86303.0,0.0442]
[1741418875583,0.2518787,86304.0,86301.0,0.0084813]
[1741418875584,0.1158814,86302.0,86301.0,0.0084813]
[1741418875790,0.1158814,86302.0,86301.0,0.1622827]
[1741418876694,0.1158814,86302.0,86301.0,0.0464]
[1741418876891,0.1158814,86302.0,86301.0,0.1622827]
[1741418877288,0.1158814,86302.0,86301.0,0.0464]
[1741418877986,0.2065814,86302.0,86301.0,0.2082827]
[1741418878493,0.0907,86302.0,86301.0,0.2082827]
[1741418878700,0.0907,86302.0,86301.0,0.2518827]
[1741418882601,0.1158827,86301.0,86300.0,0.10919969]
[1741418882797,0.1594827,86301.0,86300.0,0.10859969]
[1741418882999,0.2049827,86301.0,86300.0,0.10859969]
[1741418883503,0.2049827,86301.0,86300.0,0.22448379]
[1741418884000,0.0455,86301.0,86300.0,0.22448379]
[1741418884499,0.1613827,86301.0,86300.0,0.10859969]
[1741418887199,0.0455,86301.0,86300.0,0.22448379]
[1741418887504,4e-05,86302.0,86301.0,0.1158827]
[1741418887703,0.0428,86311.0,86307.0,0.1158747]
[1741418887901,0.0428,86311.0,86310.0,0.1158706]
[1741418888105,0.0884,86311.0,86310.0,0.1158706]
[1741418888603,0.2042693,86311.0,86310.0,0.1158706]
[1741418888802,0.2042693,86311.0,86310.0,0.1611706]
[1741418889999,0.2042693,86311.0,86310.0,0.0453]
[1741418892113,0.2042693,86311.0,86310.0,0.1611706]
[1741418892703,0.2042693,86311.0,86310.0,0.0453]
[1741418892899,0.2042693,86311.0,86310.0,0.1611706]
[1741418893314,0.2042693,86311.0,86310.0,0.0453]
[1741418893810,0.2042693,86311.0,86310.0,0.2042706]
[1741418894410,0.0884,86311.0,86300.0,0.10859969]
[1741418894717,0.1158814,86302.0,86301.0,0.0466]
[1741418895207,0.2468814,86302.0,86301.0,0.0466]
[1741418895408,0.2468814,86302.0,86301.0,0.0897]
[1741418898909,0.2468814,86302.0,86301.0,0.2055827]
[1741418899313,0.2043814,86302.0,86301.0,0.2055827]
[1741418900308,0.2043814,86302.0,86301.0,0.0897]
[1741418902910,0.2043814,86302.0,86301.0,0.2055827]
[1741418904123,0.0885,86302.0,86301.0,0.2055827]
[1741418904620,0.2043814,86302.0,86301.0,0.2055827]
[1741418906323,0.13924229,86302.0,86301.0,0.2055827]
[1741418906624,0.13924229,86302.0,86301.0,0.2827064]
[1741418907224,0.02336089,86302.0,86301.0,0.2827064]
[1741418907415,0.4766778,86305.0,86304.0,0.1158787]
[1741418907615,0.1158713,86310.0,86309.0,0.1158693]
[1741418907812,0.11608176,86312.0,86311.0,0.1158693]
[1741418908411,0.11604176,86312.0,86311.0,0.1583693]
[1741418908616,0.11608176,86312.0,86311.0,0.1583693]
[1741418912926,0.15908176,86312.0,86311.0,0.1583693]
[1741418915429,0.15908176,86312.0,86311.0,0.0425]
[1741418916433,0.15912176,86312.0,86311.0,0.0425]
[1741418917821,0.15912176,86312.0,86311.0,0.1583693]
[1741418918520,0.15912176,86312.0,86311.0,0.0425]
[1741418919435,0.09398814,86312.0,86311.0,0.0425]
[1741418924729,0.02885452,86312.0,86311.0,0.0425]
[1741418924930,0.14472252,86312.0,86311.0,0.0425]
[1741418925236,0.14472252,86312.0,86311.0,0.1196237]
[1741418926134,0.14472252,86312.0,86311.0,0.0425]
[1741418928340,0.1158774,86305.0,86304.0,0.0771237]
[1741418928535,0.4766774,86305.0,86304.0,0.2380024]
[1741418928741,0.0579378,86307.0,86304.0,0.045]
[1741418928935,0.1585771,86306.0,86305.0,0.1158774]
[1741418929442,0.0427,86306.0,86305.0,0.1582774]
[1741418929635,0.0427,86306.0,86305.0,0.2022774]
[1741418930539,4e-05,86312.0,86305.0,0.2022774]
[1741418930741,0.0448,86311.0,86309.0,0.0579355]
[1741418930930,0.1606702,86311.0,86310.0,0.2022706]
[1741418933043,0.1606702,86311.0,86303.0,0.11605336]
[1741418933044,0.1158787,86304.0,86303.0,0.11605336]
[1741418933743,0.1601783,86305.0,86304.0,0.1158787]
[1741418933944,0.0443,86305.0,86304.0,0.1992787]
[1741418935937,0.1158761,86306.0,86304.0,0.1992787]
[1741418936141,0.09504233,86306.0,86305.0,0.1158774]
[1741418936342,0.09504233,86306.0,86305.0,0.19377956]
[1741418936546,0.09504233,86306.0,86305.0,0.28067956]
[1741418937244,0.09504233,86306.0,86305.0,0.2027774]
[1741418939045,0.09504233,86306.0,86305.0,0.28067956]
[1741418939435,0.09504233,86306.0,86305.0,0.07790216]
[1741418939749,0.45584233,86306.0,86305.0,0.07790216]
[1741418940647,0.45584233,86306.0,86305.0,0.12190216]
[1741418940843,0.45584233,86306.0,86305.0,0.16450216]
[1741418941146,0.45584233,86306.0,86305.0,0.2024774]
[1741418941147,0.476676,86306.0,86305.0,0.2024774]
[1741418946251,0.115876,86306.0,86305.0,0.0866]
[1741418948759,0.158176,86306.0,86303.0,0.00017376]
[1741418948961,0.0579405,86303.0,86300.0,0.1450416]
[1741418949163,0.1158827,86301.0,86300.0,0.1450416]
[1741418949871,0.1158827,86301.0,86300.0,0.22294376]
[1741418952766,0.1577827,86301.0,86300.0,0.22294376]
[1741418955353,0.1577827,86301.0,86300.0,0.33882786]
[1741418955354,0.1158827,86301.0,86300.0,0.33882786]
[1741418955558,0.1578827,86301.0,86300.0,0.22294376]
[1741418955750,0.1578827,86301.0,86300.0,0.26444376]
[1741418957759,0.1578827,86301.0,86300.0,0.1865416]
[1741418958964,0.1998827,86301.0,86300.0,0.1865416]
[1741418959275,0.1578827,86301.0,86300.0,0.1865416]
[1741418959889,0.1578827,86301.0,86300.0,0.1450416]
[1741418960195,0.1578827,86301.0,86300.0,0.2609257]
[1741418960383,0.1578827,86301.0,86300.0,0.1450416]
[1741418960773,0.1578827,86301.0,86300.0,0.1879416]
[1741418962289,0.1578827,86301.0,86300.0,0.3038257]
[1741418965182,0.36084,86302.0,86300.0,0.3038257]
[1741418965390,0.3608,86302.0,86301.0,0.1158827]
[1741418965698,0.3608,86302.0,86301.0,0.1573827]
[1741418965898,0.3608,86302.0,86301.0,0.2438827]
[1741418967587,0.4766814,86302.0,86301.0,0.32178486]
[1741418969903,0.1158814,86302.0,86301.0,0.32178486]
[1741418971787,0.1158814,86302.0,86301.0,0.2438827]
[1741418972681,0.2038814,86302.0,86301.0,0.2438827]
[1741418972979,0.1581814,86302.0,86301.0,0.2438827]
[1741418975771,0.1581814,86302.0,86301.0,0.2023827]
[1741418976370,0.1581814,86302.0,86301.0,0.28028486]
[1741418977368,0.04574,86303.0,86301.0,0.28028486]
[1741418977671,0.1158814,86302.0,86301.0,0.28028356]
[1741418981070,0.2017814,86302.0,86301.0,0.28028356]
[1741418981977,0.1159214,86303.0,86302.0,0.1158814]
[1741418982478,0.1159214,86303.0,86302.0,0.28468356]
[1741418982666,0.1604214,86303.0,86302.0,0.28468356]
[1741418983377,0.2062214,86303.0,86302.0,0.28468356]
[1741418987369,0.1604214,86303.0,86302.0,0.28468356]
[1741418989784,0.2028214,86303.0,86302.0,0.28468356]
[1741418990972,0.1604214,86303.0,86302.0,0.28468356]
[1741418991882,0.2020214,86303.0,86302.0,0.28468356]
[1741418992182,0.2020214,86303.0,86302.0,0.2067814]
[1741418994783,0.20202,86303.0,86302.0,0.2067814]
[1741418994985,0.04454,86303.0,86302.0,0.2067814]
[1741418995385,0.16042,86303.0,86302.0,0.2067814]
[1741418996078,0.16038,86303.0,86302.0,0.2067814]
[1741418997183,0.16038,86303.0,86302.0,0.28468356]
[1741418999983,0.08076796,86303.0,86302.0,0.16880216]
[1741419000189,0.08076796,86303.0,86302.0,0.01686368]
[1741419000190,0.44156796,86303.0,86302.0,0.01686368]
[1741419000392,0.48336796,86303.0,86302.0,0.01686368]
[1741419000584,0.48336796,86303.0,86302.0,0.13274508]
[1741419000775,0.48336796,86303.0,86302.0,0.01686368]
[1741419000982,0.48336796,86303.0,86302.0,0.13274508]
[1741419001685,0.12256796,86303.0,86302.0,0.13274508]
[1741419002590,0.12256796,86303.0,86302.0,0.1158814]
[1741419003784,0.1158814,86302.0,86301.0,0.1595827]
[1741419003988,0.1589814,86302.0,86301.0,0.1595827]
[1741419004493,0.1589814,86302.0,86301.0,0.17644638]
[1741419004688,0.1589814,86302.0,86301.0,0.06056368]
[1741419005083,0.1589814,86302.0,86301.0,0.0437]
[1741419005284,0.1589814,86302.0,86301.0,0.0892]
[1741419006004,0.1589814,86302.0,86301.0,0.10606368]
[1741419007385,0.5197814,86302.0,86301.0,0.10606368]
[1741419007895,0.1158894,86296.0,86295.0,0.173834]
[1741419008095,0.0871,86301.0,86291.0,0.0579476]
[1741419008288,0.1158948,86293.0,86292.0,0.1158937]
[1741419008494,0.1158912,86295.0,86294.0,0.1158894]
[1741419009194,0.1994912,86295.0,86294.0,0.1158894]
[1741419009495,0.1994912,86295.0,86294.0,0.19333167]
[1741419010381,0.22673407,86295.0,86294.0,0.19333167]
[1741419010984,0.22673407,86295.0,86294.0,0.07744227]
[1741419011190,0.22673407,86295.0,86294.0,0.1158921]
[1741419011391,0.22673407,86295.0,86294.0,0.1593921]
[1741419011694,0.22673407,86295.0,86294.0,0.2005921]
[1741419011889,0.22673407,86295.0,86294.0,0.27803437]
[1741419013993,0.22673407,86295.0,86294.0,0.16214227]
[1741419014583,0.22673407,86295.0,86294.0,0.27803437]
[1741419014985,0.22673407,86295.0,86294.0,0.16214227]
[1741419015393,0.22673407,86295.0,86294.0,0.12094227]
[1741419017297,0.30125407,86295.0,86294.0,0.12094227]
[1741419017498,0.66205407,86295.0,86294.0,0.12094227]
[1741419017991,0.66205407,86295.0,86294.0,0.07744227]
[1741419019899,0.1158921,86294.0,86293.0,0.07744227]
[1741419020293,0.1993921,86294.0,86293.0,0.07744227]
[1741419020696,0.1158948,86292.0,86291.0,0.00878254]
[1741419021006,0.1159029,86286.0,86285.0,0.16614227]
[1741419021298,0.4767029,86286.0,86285.0,0.16614227]
[1741419021501,0.4767029,86286.0,86285.0,0.0887]
[1741419021998,0.5613029,86286.0,86285.0,0.0887]
[1741419022696,0.5613029,86286.0,86285.0,0.0435]
[1741419027205,0.4454,86286.0,86278.0,0.0441]
[1741419027397,0.1159109,86280.0,86279.0,0.0447]
[1741419027997,0.2017109,86280.0,86279.0,0.0447]
[1741419030701,0.2017109,86280.0,86279.0,0.05358271]
[1741419031009,0.2017109,86280.0,86279.0,0.00888271]
[1741419031203,0.1159177,86275.0,86274.0,0.0442]
[1741419031910,0.1992177,86275.0,86274.0,0.0442]
[1741419032409,0.1159257,86269.0,86262.0,0.3608]
[1741419032609,0.0579619,86271.0,86262.0,0.3608]
[1741419032610,0.1159297,86266.0,86265.0,0.08717045]
[1741419033006,0.2024297,86266.0,86265.0,0.08717045]
[1741419033804,0.2024297,86266.0,86265.0,0.20310155]
[1741419034014,0.2024297,86266.0,86265.0,0.08717045]
[1741419036117,0.2024297,86266.0,86265.0,0.09593548]
[1741419038720,0.2769497,86266.0,86265.0,0.09593548]
[1741419038912,0.2769497,86266.0,86265.0,0.05303548]
[1741419040318,0.2769497,86266.0,86265.0,0.00883548]
[1741419040514,0.2769497,86266.0,86245.0,0.3608]
[1741419040515,0.1159405,86258.0,86257.0,0.03089492]
[1741419040715,0.1159499,86251.0,86250.0,0.0422]
[1741419041118,0.1159553,86248.0,86247.0,0.1159553]
[1741419041318,0.1159553,86248.0,86247.0,0.1581553]
[1741419042114,0.1606553,86248.0,86247.0,0.1581553]
[1741419042521,0.1606553,86248.0,86247.0,0.0422]
[1741419042922,0.2043553,86248.0,86247.0,0.0422]
[1741419043216,0.0884,86248.0,86245.0,0.0087242]
[1741419043416,0.1159654,86242.0,86241.0,0.1159609]
[1741419043624,0.1159634,86241.0,86240.0,0.0439]
[1741419043820,0.2035634,86241.0,86240.0,0.1598647]
[1741419044326,0.2035634,86241.0,86240.0,0.0439]
[1741419044526,0.2035634,86241.0,86240.0,0.1598647]
[1741419045318,0.2035634,86241.0,86240.0,0.0439]
[1741419045825,0.2035634,86241.0,86239.0,0.12485166]
[1741419045826,0.1159647,86240.0,86239.0,0.00888646]
[1741419046018,0.1159674,86238.0,86237.0,0.0426]
[1741419046328,0.1904847,86240.0,86220.0,0.09127301]
[1741419046329,0.1159755,86232.0,86229.0,0.11771795]
[1741419046523,0.1159768,86231.0,86230.0,0.1282]
[1741419046825,0.2001768,86231.0,86230.0,0.1282]
[1741419047234,0.2001768,86231.0,86230.0,0.2441781]
[1741419048722,0.2001768,86231.0,86230.0,0.1282]
[1741419050020,0.2001768,86231.0,86230.0,0.0426]
[1741419050434,0.1159781,86230.0,86229.0,0.01025551]
[1741419050628,0.1585781,86230.0,86229.0,0.01025551]
[1741419050830,0.1585781,86230.0,86229.0,0.00851626]
[1741419050831,0.2007781,86230.0,86229.0,0.00851626]
[1741419051039,0.1159862,86224.0,86223.0,0.0448]
[1741419051233,0.1905062,86224.0,86223.0,0.0535739]
[1741419051936,0.2341062,86224.0,86223.0,0.0535739]
[1741419052127,0.2754062,86224.0,86223.0,0.0535739]
[1741419054136,0.2754062,86224.0,86223.0,0.0087739]
[1741419054337,0.1159956,86217.0,86216.0,0.0846]
[1741419055234,0.1160037,86211.0,86210.0,0.3608]
[1741419059327,0.1160037,86211.0,86210.0,0.36970942]
[1741419060042,0.0865,86214.0,86212.0,0.1160024]
[1741419060231,0.2025004,86214.0,86213.0,0.1266]
[1741419060537,0.2024997,86214.0,86213.0,0.1266]
[1741419064541,0.2460997,86214.0,86213.0,0.09247995]
[1741419065138,0.0437,86214.0,86213.0,0.56928095]
[1741419065645,0.1596997,86214.0,86213.0,0.56928095]
[1741419066055,0.0437,86214.0,86213.0,0.56928095]
[1741419066740,4e-05,86215.0,86214.0,0.1159997]
[1741419067042,4e-05,86218.0,86217.0,0.1159956]
[1741419067244,0.1160343,86218.0,86217.0,0.1159956]
[1741419067546,0.1159943,86218.0,86217.0,0.1159956]
[1741419067852,0.1159983,86216.0,86215.0,0.1159977]
[1741419068035,0.1159983,86216.0,86215.0,0.1592977]
[1741419068340,0.1586983,86216.0,86215.0,0.1592977]
[1741419068938,0.1983983,86216.0,86215.0,0.1592977]
[1741419073841,0.13320187,86216.0,86215.0,0.1592977]
[1741419074041,0.0824,86216.0,86215.0,0.1592977]
[1741419074638,0.198397,86216.0,86215.0,0.1592977]
[1741419075643,0.198397,86216.0,86215.0,0.5200977]
[1741419076649,4e-05,86217.0,86216.0,0.115997]
[1741419076954,4e-05,86217.0,86216.0,0.157597]
[1741419077441,0.0857,86221.0,86220.0,0.1159916]
[1741419079552,0.0435,86221.0,86220.0,0.1159916]
[1741419081143,0.0866,86221.0,86220.0,0.1159916]
[1741419082349,0.2025903,86221.0,86220.0,0.1159916]
[1741419082651,0.0866,86221.0,86220.0,0.1159916]
[1741419083337,0.2025903,86221.0,86220.0,0.1159916]
[1741419083940,0.2025903,86221.0,86220.0,0.1555916]
[1741419085354,0.0866,86221.0,86220.0,0.1555916]
[1741419085850,0.2025903,86221.0,86220.0,0.1555916]
[1741419088246,0.0866,86221.0,86220.0,0.1555916]
[1741419088952,0.0866,86221.0,86220.0,0.1977916]
[1741419089451,0.08650548,86221.0,86220.0,0.1977916]
[1741419090456,0.20249578,86221.0,86220.0,0.1977916]
[1741419090658,0.08650548,86221.0,86220.0,0.1977916]
[1741419090846,0.13730025,86221.0,86220.0,0.1977916]
[1741419091243,0.02130995,86221.0,86220.0,0.27523387]
[1741419092052,0.02130995,86221.0,86220.0,0.1977916]
[1741419092257,0.13730025,86221.0,86220.0,0.1977916]
[1741419094149,0.17990025,86221.0,86220.0,0.1977916]
[1741419094658,0.17990025,86221.0,86220.0,0.27523387]
[1741419094844,0.06390995,86221.0,86220.0,0.27523387]
[1741419095050,0.1159885,86223.0,86222.0,0.1159889]
[1741419095559,0.1159885,86223.0,86222.0,0.19343117]
[1741419095957,0.11615918,86225.0,86224.0,0.1159862]
[1741419096355,0.00017398,86225.0,86224.0,0.1159862]
[1741419096554,0.00017398,86225.0,86224.0,0.2412862]
[1741419096856,0.11615888,86225.0,86224.0,0.2412862]
[1741419097058,0.11615888,86225.0,86224.0,0.2004862]
[1741419098650,0.20025888,86225.0,86224.0,0.2004862]
[1741419099260,0.20025888,86225.0,86224.0,0.27792847]
[1741419100255,0.20025888,86225.0,86224.0,0.16194227]
[1741419100656,0.20025888,86225.0,86224.0,0.27792847]
[1741419101156,0.1350636,86225.0,86224.0,0.27792847]
[1741419104058,0.2000849,86225.0,86224.0,0.27792847]
[1741419104457,0.0841,86225.0,86224.0,0.27792847]
[1741419104657,0.2000849,86225.0,86224.0,0.27792847]
[1741419107358,0.0841,86225.0,86224.0,0.27792847]
[1741419107879,4e-05,86227.0,86224.0,0.16194227]
[1741419108090,0.0404,86239.0,86232.0,0.1159755]
[1741419108269,0.0415,86238.0,86232.0,0.1159755]
[1741419108474,0.11614808,86233.0,86232.0,0.1159755]
[1741419108669,0.15744057,86233.0,86232.0,0.31511777]
[1741419109371,0.0579859,86235.0,86234.0,0.1159728]
[1741419110269,0.0389,86235.0,86234.0,0.1159728]
[1741419110465,0.0389,86235.0,86234.0,0.19341507]
[1741419110672,0.1548714,86235.0,86234.0,0.19341507]
[1741419110971,0.1160092,86237.0,86236.0,0.1159701]
[1741419111159,0.05082842,86237.0,86236.0,0.55421237]
[1741419111676,0.12922842,86237.0,86236.0,0.63551237]
[1741419112168,0.12922842,86237.0,86236.0,0.5580701]
[1741419112576,0.13322842,86237.0,86236.0,0.5580701]
[1741419112771,0.09372842,86237.0,86236.0,0.5580701]
[1741419112968,0.05482842,86237.0,86236.0,0.5580701]
[1741419113272,0.05382842,86237.0,86236.0,0.5580701]
[1741419114470,0.09482842,86237.0,86236.0,0.1972701]
[1741419114670,0.09482842,86237.0,86236.0,0.5580701]
[1741419114861,0.09482842,86237.0,86236.0,0.1972701]
[1741419115068,0.09482842,86237.0,86236.0,0.5580701]
[1741419115373,0.09582842,86237.0,86236.0,0.5580701]
[1741419116372,0.045,86237.0,86236.0,0.5580701]
[1741419116575,0.004,86237.0,86236.0,0.5580701]
[1741419117769,0.0838,86237.0,86236.0,0.5580701]
[1741419118279,0.0838,86237.0,86236.0,0.63551237]
[1741419119078,0.0838,86237.0,86236.0,0.5580701]
[1741419119769,0.0838,86237.0,86236.0,0.63551237]
[1741419120374,0.0431,86237.0,86236.0,0.63551237]
[1741419120776,0.0393,86239.0,86238.0,0.1159674]
[1741419121174,0.09008357,86241.0,86240.0,0.1159647]
[1741419121669,0.09008357,86241.0,86240.0,0.19340697]
[1741419121861,0.09008357,86241.0,86240.0,0.27740697]
[1741419122476,0.09008357,86241.0,86240.0,0.1999647]
[1741419122778,0.09408357,86241.0,86240.0,0.1999647]
[1741419124276,0.13498357,86241.0,86240.0,0.084]
[1741419124470,0.17448357,86241.0,86240.0,0.084]
[1741419124872,0.17448357,86241.0,86240.0,0.1999647]
[1741419125275,0.17448357,86241.0,86240.0,0.084]
[1741419125469,0.17448357,86241.0,86240.0,0.041]
[1741419125866,0.17448357,86241.0,86237.0,0.04777786]
[1741419125867,0.1159674,86238.0,86237.0,0.04777786]
[1741419126377,0.1159808,86228.0,86227.0,0.16375926]
[1741419127170,0.1996808,86228.0,86227.0,0.16375926]
[1741419128079,0.1996808,86228.0,86227.0,0.27973716]
[1741419128973,0.1996808,86228.0,86227.0,0.20425576]
[1741419129173,0.1996808,86228.0,86227.0,0.24735576]
[1741419130382,0.1996808,86228.0,86227.0,0.04777786]
[1741419131282,0.1996808,86228.0,86223.0,0.1159871]
[1741419131475,0.1159862,86224.0,86223.0,0.1159871]
[1741419131674,0.1159862,86224.0,86223.0,0.1989871]
[1741419132281,0.1939862,86224.0,86223.0,0.1989871]
[1741419137506,0.039,86224.0,86223.0,0.1989871]
[1741419137695,4e-05,86225.0,86224.0,0.1159862]
[1741419138200,4e-05,86225.0,86224.0,0.24146406]
[1741419138402,0.0429,86228.0,86227.0,0.1159822]
[1741419139089,0.0429,86228.0,86227.0,0.16376006]
[1741419139288,0.0429,86228.0,86227.0,0.24146006]
[1741419140188,0.0429,86228.0,86227.0,0.60226006]
[1741419141289,0.00462925,86230.0,86227.0,0.48627786]
[1741419141491,4e-05,86231.0,86229.0,0.1159795]
[1741419141785,0.1160168,86231.0,86230.0,0.24315596]
[1741419143588,4e-05,86231.0,86230.0,0.24315596]
[1741419144086,4e-05,86231.0,86230.0,0.28565596]
[1741419144485,0.0785,86241.0,86240.0,0.1159647]
[1741419145086,0.00195401,86243.0,86240.0,0.1159647]
[1741419145087,0.00195401,86243.0,86241.0,0.1159634]
[1741419145281,0.00195401,86243.0,86242.0,0.115962]
[1741419145482,0.1944407,86259.0,86258.0,0.1159405]
[1741419145684,0.0785,86259.0,86258.0,0.4767405]
[1741419145886,0.1944392,86259.0,86258.0,0.52451836]
[1741419146088,0.0785,86259.0,86258.0,0.52451836]
[1741419146288,0.06125905,86259.0,86258.0,0.52451836]
[1741419146490,0.02125905,86259.0,86258.0,0.52451836]
[1741419146689,0.02578,86260.0,86259.0,0.1159392]
[1741419146988,0.00017398,86267.0,86266.0,0.1159297]
[1741419147286,0.00017398,86267.0,86266.0,0.4767297]
[1741419147287,0.02160129,86267.0,86266.0,0.4767297]
[1741419147495,0.3608,86280.0,86275.0,0.1159177]
[1741419147685,0.36172,86280.0,86275.0,0.1159177]
[1741419147884,0.00184,86280.0,86275.0,0.1159177]
[1741419148285,0.02176446,86276.0,86275.0,0.1159177]
[1741419149486,0.02176446,86276.0,86275.0,0.1169177]
[1741419150893,0.00013906,86276.0,86275.0,0.1169177]
[1741419151096,0.0418,86296.0,86283.0,0.1159069]
[1741419151394,0.0418,86296.0,86295.0,0.1158908]
[1741419151395,0.1576894,86296.0,86295.0,0.1158908]
[1741419152098,0.0399,86298.0,86297.0,0.1158881]
[1741419152685,0.02112273,86298.0,86297.0,0.1158881]
[1741419152890,0.36172,86299.0,86297.0,0.1158881]
[1741419153091,0.1158868,86298.0,86297.0,0.1158868]
[1741419153492,0.1158868,86298.0,86297.0,0.1168868]
[1741419154395,0.1963868,86298.0,86297.0,0.1168868]
[1741419156999,0.21794214,86298.0,86297.0,0.1168868]